[Event "*** Titled Tuesday Blitz"]
[Site "Chess.com"]
[Date "2020.04.14"]
[Round "4"]
[White "kircsaj"]
[Black "M1711"]
[Result "0-1"]
[WhiteElo "2316"]
[BlackElo "2548"]
[TimeControl "180+1"]
[EndTime "10:39:24 PDT"]
[Termination "M1711 won by resignation"]

1. e4 {[%clk 0:02:59.5]} 1... c5 {[%clk 0:02:59.3]} 2. Nf3 {[%clk 0:02:59.2]}
2... d6 {[%clk 0:02:57.9]} 3. d4 {[%clk 0:02:58.6]} 3... cxd4 {[%clk 0:02:58.8]}
4. Nxd4 {[%clk 0:02:59]} 4... Nf6 {[%clk 0:02:59.4]} 5. Nc3 {[%clk 0:02:59.3]}
5... a6 {[%clk 0:02:59.9]} 6. Qf3 {[%clk 0:02:59.6]} 6... Nbd7 {[%clk
0:02:56.8]} 7. Be3 {[%clk 0:02:56]} 7... e6 {[%clk 0:02:50.7]} 8. h3 {[%clk
0:02:49.3]} 8... Be7 {[%clk 0:02:49.9]} 9. g4 {[%clk 0:02:49.2]} 9... Qc7 {[%clk
0:02:47]} 10. g5 {[%clk 0:02:47.7]} 10... Ne5 {[%clk 0:02:46]} 11. Qg3 {[%clk
0:02:39.8]} 11... Nfd7 {[%clk 0:02:43.4]} 12. f4 {[%clk 0:02:37.7]} 12... Nc4
{[%clk 0:02:41.3]} 13. Bxc4 {[%clk 0:02:38.1]} 13... Qxc4 {[%clk 0:02:42.2]} 14.
O-O-O {[%clk 0:02:38]} 14... b5 {[%clk 0:02:39.5]} 15. a3 {[%clk 0:02:37.4]}
15... Rb8 {[%clk 0:02:28.2]} 16. Rhe1 {[%clk 0:02:13.9]} 16... a5 {[%clk
0:02:18.5]} 17. Nb3 {[%clk 0:01:48.5]} 17... Qc7 {[%clk 0:02:08.3]} 18. Bd4
{[%clk 0:01:47.4]} 18... O-O {[%clk 0:02:03.3]} 19. f5 {[%clk 0:01:43.8]} 19...
b4 {[%clk 0:01:36.5]} 20. axb4 {[%clk 0:01:39.6]} 20... axb4 {[%clk 0:01:36.1]}
21. f6 {[%clk 0:01:39.1]} 21... bxc3 {[%clk 0:01:26.6]} 22. fxe7 {[%clk
0:01:35.7]} 22... cxb2+ {[%clk 0:01:22.1]} 23. Kb1 {[%clk 0:01:35.6]} 23... Re8
{[%clk 0:01:20.9]} 24. h4 {[%clk 0:01:28.8]} 24... Ne5 {[%clk 0:01:05.8]} 25.
Bxe5 {[%clk 0:01:21.1]} 25... dxe5 {[%clk 0:01:06.7]} 26. h5 {[%clk 0:01:21.3]}
26... Ra8 {[%clk 0:00:40.9]} 27. g6 {[%clk 0:01:17.2]} 27... fxg6 {[%clk
0:00:18.5]} 28. hxg6 {[%clk 0:01:16.6]} 28... h6 {[%clk 0:00:19.1]} 29. Rf1
{[%clk 0:01:08]} 29... Qxe7 {[%clk 0:00:19.1]} 30. Rf7 {[%clk 0:01:06.9]} 30...
Qa3 {[%clk 0:00:18.2]} 31. Rxg7+ {[%clk 0:01:04.7]} 31... Kxg7 {[%clk
0:00:15.5]} 32. Qxe5+ {[%clk 0:01:04.5]} 32... Kg8 {[%clk 0:00:16.1]} 0-1

[Event "*** Titled Tuesday Blitz"]
[Site "Chess.com"]
[Date "2020.04.14"]
[Round "4"]
[White "ChessFunMaker"]
[Black "Xeniya2005"]
[Result "0-1"]
[WhiteElo "2380"]
[BlackElo "2194"]
[TimeControl "180+1"]
[EndTime "10:39:24 PDT"]
[Termination "Xeniya2005 won on time"]

1. c4 {[%clk 0:02:58.5]} 1... e5 {[%clk 0:02:59.5]} 2. g3 {[%clk 0:02:58.3]}
2... Nf6 {[%clk 0:02:59.1]} 3. Bg2 {[%clk 0:02:58]} 3... Nc6 {[%clk 0:02:58.5]}
4. Nc3 {[%clk 0:02:57.2]} 4... Bb4 {[%clk 0:02:54.5]} 5. Nd5 {[%clk 0:02:56.5]}
5... Bc5 {[%clk 0:02:52.2]} 6. e3 {[%clk 0:02:55.7]} 6... d6 {[%clk 0:02:50.4]}
7. Ne2 {[%clk 0:02:56.1]} 7... Nxd5 {[%clk 0:02:39.2]} 8. cxd5 {[%clk
0:02:55.9]} 8... Ne7 {[%clk 0:02:39.2]} 9. O-O {[%clk 0:02:55.6]} 9... Bf5
{[%clk 0:02:38.1]} 10. d4 {[%clk 0:02:54.6]} 10... exd4 {[%clk 0:02:37.6]} 11.
Nxd4 {[%clk 0:02:54.5]} 11... Bd7 {[%clk 0:02:33]} 12. e4 {[%clk 0:02:11.9]}
12... O-O {[%clk 0:02:26]} 13. Be3 {[%clk 0:01:55.8]} 13... c6 {[%clk
0:02:15.3]} 14. Qd2 {[%clk 0:01:35.6]} 14... cxd5 {[%clk 0:02:05.3]} 15. exd5
{[%clk 0:01:35.8]} 15... Qb6 {[%clk 0:02:04.7]} 16. a3 {[%clk 0:01:19.2]} 16...
Nf5 {[%clk 0:02:02]} 17. Nxf5 {[%clk 0:01:12.5]} 17... Bxf5 {[%clk 0:02:01.1]}
18. Bxc5 {[%clk 0:01:09.2]} 18... dxc5 {[%clk 0:01:51.2]} 19. Rac1 {[%clk
0:00:50.2]} 19... Qd6 {[%clk 0:01:47.6]} 20. Qe3 {[%clk 0:00:40.9]} 20... b6
{[%clk 0:01:46.2]} 21. Rfe1 {[%clk 0:00:41.5]} 21... Rad8 {[%clk 0:01:37.1]} 22.
Qe7 {[%clk 0:00:29.2]} 22... Qxe7 {[%clk 0:01:22.7]} 23. Rxe7 {[%clk 0:00:28.7]}
23... Rd7 {[%clk 0:01:23.1]} 24. Rce1 {[%clk 0:00:26.9]} 24... h6 {[%clk
0:01:15.8]} 25. h3 {[%clk 0:00:21.4]} 25... Rfd8 {[%clk 0:01:13.7]} 26. g4
{[%clk 0:00:15.7]} 26... Bd3 {[%clk 0:01:12.4]} 27. b3 {[%clk 0:00:08.1]} 27...
c4 {[%clk 0:01:04.1]} 28. R7e3 {[%clk 0:00:07.6]} 28... b5 {[%clk 0:00:57.7]}
29. Rc1 {[%clk 0:00:06.6]} 29... Kf8 {[%clk 0:00:50.6]} 30. a4 {[%clk
0:00:06.6]} 30... a6 {[%clk 0:00:50]} 31. Bf3 {[%clk 0:00:05.8]} 31... Re7
{[%clk 0:00:48]} 32. axb5 {[%clk 0:00:04.9]} 32... axb5 {[%clk 0:00:45.5]} 33.
Kg2 {[%clk 0:00:04]} 33... Rxe3 {[%clk 0:00:44.1]} 34. fxe3 {[%clk 0:00:03.9]}
34... cxb3 {[%clk 0:00:41.1]} 35. Bd1 {[%clk 0:00:01.9]} 35... b2 {[%clk
0:00:41.1]} 0-1

[Event "*** Titled Tuesday Blitz"]
[Site "Chess.com"]
[Date "2020.04.14"]
[Round "4"]
[White "regular_legs"]
[Black "Ellaijio_B"]
[Result "0-1"]
[WhiteElo "2534"]
[BlackElo "2724"]
[TimeControl "180+1"]
[EndTime "10:39:25 PDT"]
[Termination "Ellaijio_B won by checkmate"]

1. d4 {[%clk 0:03:00.9]} 1... Nf6 {[%clk 0:02:59.7]} 2. c4 {[%clk 0:03:00.2]}
2... c5 {[%clk 0:03:00.2]} 3. Nf3 {[%clk 0:02:59.4]} 3... cxd4 {[%clk
0:02:59.9]} 4. Nxd4 {[%clk 0:03:00.3]} 4... b6 {[%clk 0:03:00.8]} 5. Nc3 {[%clk
0:03:00]} 5... Bb7 {[%clk 0:03:01.3]} 6. f3 {[%clk 0:03:00.7]} 6... d6 {[%clk
0:03:01.7]} 7. e4 {[%clk 0:03:01]} 7... a6 {[%clk 0:03:02.6]} 8. Be3 {[%clk
0:03:01.5]} 8... e6 {[%clk 0:03:03.5]} 9. Be2 {[%clk 0:03:02]} 9... Nbd7 {[%clk
0:03:04.4]} 10. O-O {[%clk 0:03:02.4]} 10... Be7 {[%clk 0:03:05.3]} 11. a4
{[%clk 0:03:01.4]} 11... O-O {[%clk 0:03:06.2]} 12. a5 {[%clk 0:03:01.2]} 12...
bxa5 {[%clk 0:03:07.1]} 13. Nb3 {[%clk 0:03:01.3]} 13... Rb8 {[%clk 0:03:08]}
14. Nxa5 {[%clk 0:03:00.4]} 14... Ba8 {[%clk 0:03:08.5]} 15. Qd2 {[%clk
0:02:49.3]} 15... Re8 {[%clk 0:03:03.7]} 16. Rfb1 {[%clk 0:02:48]} 16... d5
{[%clk 0:03:03.3]} 17. exd5 {[%clk 0:02:44.8]} 17... exd5 {[%clk 0:03:02.3]} 18.
cxd5 {[%clk 0:02:12.3]} 18... Bb4 {[%clk 0:02:50.9]} 19. Nc6 {[%clk 0:02:12]}
19... Bxc6 {[%clk 0:02:37.7]} 20. dxc6 {[%clk 0:02:12.9]} 20... Rxe3 {[%clk
0:02:38]} 21. cxd7 {[%clk 0:02:11.7]} 21... Re7 {[%clk 0:01:55.9]} 22. Bxa6
{[%clk 0:01:58.2]} 22... Rxd7 {[%clk 0:01:56]} 23. Qc2 {[%clk 0:01:48.3]} 23...
Rd2 {[%clk 0:01:49.9]} 24. Qf5 {[%clk 0:01:23.2]} 24... g6 {[%clk 0:01:09.4]}
25. Qf4 {[%clk 0:01:08.9]} 25... Nh5 {[%clk 0:00:57.9]} 26. Qg4 {[%clk
0:01:01.6]} 26... Rd4 {[%clk 0:00:40.1]} 27. Qh3 {[%clk 0:00:49.3]} 27... Rh4
{[%clk 0:00:32.1]} 28. Qxh4 {[%clk 0:00:32.8]} 28... Qxh4 {[%clk 0:00:31]} 29.
Ne4 {[%clk 0:00:33.7]} 29... f5 {[%clk 0:00:27.1]} 30. Bc4+ {[%clk 0:00:17.6]}
30... Kh8 {[%clk 0:00:26.3]} 31. Bd5 {[%clk 0:00:16.4]} 31... fxe4 {[%clk
0:00:23.9]} 32. Bxe4 {[%clk 0:00:17.3]} 32... Bc5+ {[%clk 0:00:23.7]} 33. Kf1
{[%clk 0:00:18]} 33... Qf2# {[%clk 0:00:22.9]} 0-1

[Event "*** Titled Tuesday Blitz"]
[Site "Chess.com"]
[Date "2020.04.14"]
[Round "4"]
[White "SergeiAza"]
[Black "thedjoker98"]
[Result "1-0"]
[WhiteElo "2780"]
[BlackElo "2454"]
[TimeControl "180+1"]
[EndTime "10:39:25 PDT"]
[Termination "SergeiAza won by resignation"]

1. e4 {[%clk 0:03:00.9]} 1... e5 {[%clk 0:02:58.9]} 2. Nf3 {[%clk 0:03:00.9]}
2... Nc6 {[%clk 0:02:58.6]} 3. Bb5 {[%clk 0:03:01.3]} 3... g6 {[%clk 0:02:58.6]}
4. d4 {[%clk 0:02:55.9]} 4... exd4 {[%clk 0:02:58.5]} 5. Nxd4 {[%clk 0:02:55.7]}
5... Bg7 {[%clk 0:02:58.5]} 6. Nxc6 {[%clk 0:02:53]} 6... bxc6 {[%clk
0:02:56.6]} 7. Bc4 {[%clk 0:02:51.2]} 7... Ne7 {[%clk 0:02:56.2]} 8. O-O {[%clk
0:02:51.1]} 8... d5 {[%clk 0:02:53.9]} 9. Bd3 {[%clk 0:02:42.6]} 9... O-O {[%clk
0:02:48.6]} 10. Nc3 {[%clk 0:02:42.3]} 10... Rb8 {[%clk 0:02:46.1]} 11. Na4
{[%clk 0:02:14.4]} 11... Qd6 {[%clk 0:02:25]} 12. Be3 {[%clk 0:02:06.9]} 12...
d4 {[%clk 0:02:23.1]} 13. Bd2 {[%clk 0:02:03.7]} 13... c5 {[%clk 0:02:20.8]} 14.
b3 {[%clk 0:02:03.6]} 14... Be6 {[%clk 0:02:20.4]} 15. Qe2 {[%clk 0:01:52.4]}
15... Rfe8 {[%clk 0:02:02.8]} 16. Rae1 {[%clk 0:01:51.2]} 16... Nc6 {[%clk
0:01:57.8]} 17. Nb2 {[%clk 0:01:41]} 17... Nb4 {[%clk 0:01:44.1]} 18. Bxb4
{[%clk 0:01:40.1]} 18... cxb4 {[%clk 0:01:39.3]} 19. Nc4 {[%clk 0:01:40.5]}
19... Qd7 {[%clk 0:01:37.8]} 20. f4 {[%clk 0:01:37.3]} 20... f5 {[%clk 0:01:35]}
21. exf5 {[%clk 0:01:31.4]} 21... Bxf5 {[%clk 0:01:31.2]} 22. Bxf5 {[%clk
0:01:29.5]} 22... gxf5 {[%clk 0:01:26.4]} 23. Qd3 {[%clk 0:01:23.8]} 23... Qd5
{[%clk 0:01:21.1]} 24. Ne5 {[%clk 0:01:17.3]} 24... Rf8 {[%clk 0:01:02.7]} 25.
Re2 {[%clk 0:01:15.9]} 25... Rbe8 {[%clk 0:01:00.2]} 26. Rfe1 {[%clk 0:01:16]}
26... c5 {[%clk 0:01:00.3]} 27. Qb5 {[%clk 0:01:06.8]} 27... Re7 {[%clk
0:00:43]} 28. Nc6 {[%clk 0:00:51.2]} 28... Rxe2 {[%clk 0:00:41.6]} 29. Rxe2
{[%clk 0:00:51.7]} 29... Qd6 {[%clk 0:00:41]} 30. g3 {[%clk 0:00:44.8]} 30... h5
{[%clk 0:00:30.6]} 31. Ne5 {[%clk 0:00:41]} 31... h4 {[%clk 0:00:27.5]} 32. Kf2
{[%clk 0:00:39.4]} 32... hxg3+ {[%clk 0:00:27.1]} 33. hxg3 {[%clk 0:00:40.3]}
33... Qd5 {[%clk 0:00:21.7]} 34. Ng6 {[%clk 0:00:31.9]} 34... Qh1 {[%clk
0:00:15.7]} 35. Qc4+ {[%clk 0:00:28.1]} 35... Kh7 {[%clk 0:00:14.7]} 36. Nxf8+
{[%clk 0:00:27.8]} 36... Bxf8 {[%clk 0:00:15.3]} 37. Qf7+ {[%clk 0:00:27.7]}
37... Bg7 {[%clk 0:00:15.5]} 38. Qxf5+ {[%clk 0:00:27.8]} 1-0

[Event "*** Titled Tuesday Blitz"]
[Site "Chess.com"]
[Date "2020.04.14"]
[Round "4"]
[White "Ziyamammadov"]
[Black "djano"]
[Result "0-1"]
[WhiteElo "1797"]
[BlackElo "2494"]
[TimeControl "180+1"]
[EndTime "10:39:25 PDT"]
[Termination "djano won by checkmate"]

1. e4 {[%clk 0:03:00.9]} 1... e5 {[%clk 0:02:59.4]} 2. Nf3 {[%clk 0:03:00.9]}
2... Nc6 {[%clk 0:02:59.4]} 3. d4 {[%clk 0:03:01.4]} 3... exd4 {[%clk
0:02:59.1]} 4. Bc4 {[%clk 0:02:59.4]} 4... Bc5 {[%clk 0:02:59.1]} 5. c3 {[%clk
0:02:58.5]} 5... d3 {[%clk 0:02:57.3]} 6. Qxd3 {[%clk 0:02:55.6]} 6... d6 {[%clk
0:02:55.5]} 7. O-O {[%clk 0:02:54.8]} 7... Nf6 {[%clk 0:02:55.8]} 8. a4 {[%clk
0:02:48.9]} 8... a5 {[%clk 0:02:55.1]} 9. Nbd2 {[%clk 0:02:45.6]} 9... O-O
{[%clk 0:02:54.5]} 10. Nb3 {[%clk 0:02:45.2]} 10... Bb6 {[%clk 0:02:48.9]} 11.
Nbd4 {[%clk 0:02:38.5]} 11... Ne5 {[%clk 0:02:45.7]} 12. Nxe5 {[%clk 0:02:30.8]}
12... dxe5 {[%clk 0:02:46.6]} 13. Nf3 {[%clk 0:02:30.9]} 13... Qxd3 {[%clk
0:02:31.5]} 14. Bxd3 {[%clk 0:02:31.8]} 14... Nd7 {[%clk 0:02:24.2]} 15. b4
{[%clk 0:02:21.1]} 15... Re8 {[%clk 0:02:16.4]} 16. Bc4 {[%clk 0:02:16.4]} 16...
h6 {[%clk 0:02:07.7]} 17. Be3 {[%clk 0:02:15.1]} 17... Bxe3 {[%clk 0:01:59]} 18.
fxe3 {[%clk 0:02:16]} 18... Nf6 {[%clk 0:01:59.1]} 19. Nd2 {[%clk 0:01:18.3]}
19... Be6 {[%clk 0:01:57.5]} 20. Bxe6 {[%clk 0:01:14]} 20... Rxe6 {[%clk
0:01:58.4]} 21. b5 {[%clk 0:01:10.7]} 21... Rd8 {[%clk 0:01:54]} 22. Rad1 {[%clk
0:01:05.7]} 22... Red6 {[%clk 0:01:52.6]} 23. c4 {[%clk 0:00:33.6]} 23... Rxd2
{[%clk 0:01:51.9]} 24. Rxd2 {[%clk 0:00:32.8]} 24... Rxd2 {[%clk 0:01:52.8]} 25.
Rc1 {[%clk 0:00:32.3]} 25... Nxe4 {[%clk 0:01:51.4]} 26. c5 {[%clk 0:00:32.3]}
26... Rd5 {[%clk 0:01:47.6]} 27. c6 {[%clk 0:00:31.9]} 27... b6 {[%clk
0:01:46.9]} 28. h3 {[%clk 0:00:28.8]} 28... Nc5 {[%clk 0:01:46.9]} 29. Rc4
{[%clk 0:00:27.8]} 29... f5 {[%clk 0:01:43.7]} 30. Kf2 {[%clk 0:00:25.4]} 30...
Kf7 {[%clk 0:01:42.3]} 31. Kf3 {[%clk 0:00:24.3]} 31... Ke6 {[%clk 0:01:42.5]}
32. g4 {[%clk 0:00:22.9]} 32... e4+ {[%clk 0:01:40.6]} 33. Kg3 {[%clk
0:00:20.1]} 33... g5 {[%clk 0:01:39.2]} 34. h4 {[%clk 0:00:18.1]} 34... gxh4+
{[%clk 0:01:38.1]} 35. Kxh4 {[%clk 0:00:18.2]} 35... fxg4 {[%clk 0:01:38.6]} 36.
Kxg4 {[%clk 0:00:19.1]} 36... h5+ {[%clk 0:01:38.7]} 37. Kh4 {[%clk 0:00:18.6]}
37... Kf6 {[%clk 0:01:32.2]} 38. Kg3 {[%clk 0:00:13.5]} 38... Kg5 {[%clk
0:01:31.5]} 39. Kh3 {[%clk 0:00:12.2]} 39... h4 {[%clk 0:01:31.6]} 40. Rd4
{[%clk 0:00:09.6]} 40... Rxd4 {[%clk 0:01:28.3]} 41. exd4 {[%clk 0:00:10.5]}
41... e3 {[%clk 0:01:14.8]} 42. Kg2 {[%clk 0:00:04.6]} 42... h3+ {[%clk
0:01:12.8]} 43. Kxh3 {[%clk 0:00:04]} 43... e2 {[%clk 0:01:13.1]} 44. dxc5
{[%clk 0:00:04.9]} 44... e1=Q {[%clk 0:01:13.4]} 45. cxb6 {[%clk 0:00:05.8]}
45... Kf4 {[%clk 0:01:05.7]} 46. Kh2 {[%clk 0:00:04.3]} 46... Qf2+ {[%clk
0:01:05.4]} 47. Kh1 {[%clk 0:00:03.9]} 47... Kg3 {[%clk 0:01:05.4]} 48. bxc7
{[%clk 0:00:04.6]} 48... Qh2# {[%clk 0:01:06]} 0-1

[Event "*** Titled Tuesday Blitz"]
[Site "Chess.com"]
[Date "2020.04.14"]
[Round "4"]
[White "Halvard"]
[Black "Rinas_Oleg"]
[Result "1-0"]
[WhiteElo "2106"]
[BlackElo "2346"]
[TimeControl "180+1"]
[EndTime "10:39:27 PDT"]
[Termination "Halvard won on time"]

1. e4 {[%clk 0:03:00.9]} 1... c5 {[%clk 0:02:56.4]} 2. a3 {[%clk 0:03:00.5]}
2... d6 {[%clk 0:02:53]} 3. b4 {[%clk 0:03:00.3]} 3... cxb4 {[%clk 0:02:47.7]}
4. axb4 {[%clk 0:02:59.9]} 4... e6 {[%clk 0:02:46]} 5. d4 {[%clk 0:02:59.4]}
5... Nf6 {[%clk 0:02:43.7]} 6. Bd3 {[%clk 0:02:58.9]} 6... Be7 {[%clk
0:02:42.3]} 7. Nf3 {[%clk 0:02:57.4]} 7... O-O {[%clk 0:02:40.6]} 8. O-O {[%clk
0:02:56.7]} 8... Nbd7 {[%clk 0:02:31.1]} 9. h3 {[%clk 0:02:44.2]} 9... e5 {[%clk
0:02:21.8]} 10. d5 {[%clk 0:02:20.2]} 10... Nb6 {[%clk 0:01:52.3]} 11. Be3
{[%clk 0:02:14.2]} 11... Bd7 {[%clk 0:01:50.2]} 12. c4 {[%clk 0:02:10.9]} 12...
Qc7 {[%clk 0:01:46.7]} 13. Qc2 {[%clk 0:02:01.3]} 13... Rfc8 {[%clk 0:01:44.5]}
14. Rc1 {[%clk 0:02:01.2]} 14... Be8 {[%clk 0:01:35.4]} 15. c5 {[%clk
0:01:58.7]} 15... Nbd7 {[%clk 0:01:30.7]} 16. c6 {[%clk 0:01:36.6]} 16... Nb6
{[%clk 0:01:15.3]} 17. Na3 {[%clk 0:01:31.1]} 17... bxc6 {[%clk 0:01:09.4]} 18.
Ba6 {[%clk 0:01:23.7]} 18... Rcb8 {[%clk 0:00:47.4]} 19. dxc6 {[%clk 0:01:20.9]}
19... Nc8 {[%clk 0:00:27.4]} 20. Nb5 {[%clk 0:01:13.8]} 20... Rxb5 {[%clk
0:00:26.5]} 21. Bxb5 {[%clk 0:01:14.4]} 21... g6 {[%clk 0:00:21.9]} 22. Ba6
{[%clk 0:01:14.1]} 22... Bf8 {[%clk 0:00:18.3]} 23. Bb7 {[%clk 0:01:13.8]} 23...
Rb8 {[%clk 0:00:16.6]} 24. Bxa7 {[%clk 0:01:12.7]} 24... Nxa7 {[%clk 0:00:15.3]}
25. Rxa7 {[%clk 0:01:13.6]} 25... Qb6 {[%clk 0:00:15]} 26. Ra6 {[%clk
0:00:57.7]} 26... Qc7 {[%clk 0:00:14.1]} 27. b5 {[%clk 0:00:56]} 27... d5 {[%clk
0:00:13.6]} 28. Ra8 {[%clk 0:00:50.3]} 28... dxe4 {[%clk 0:00:11.4]} 29. Rxb8
{[%clk 0:00:45.6]} 29... Qxb8 {[%clk 0:00:10.8]} 30. Nd2 {[%clk 0:00:45.6]}
30... Bd6 {[%clk 0:00:06]} 31. Nc4 {[%clk 0:00:43.7]} 31... Bc7 {[%clk
0:00:04.3]} 32. b6 {[%clk 0:00:42.2]} 32... Bxc6 {[%clk 0:00:01.3]} 33. Bxc6
{[%clk 0:00:30.6]} 1-0

[Event "*** Titled Tuesday Blitz"]
[Site "Chess.com"]
[Date "2020.04.14"]
[Round "4"]
[White "Shant_Sargsyan"]
[Black "Rish_97"]
[Result "0-1"]
[WhiteElo "3023"]
[BlackElo "2611"]
[TimeControl "180+1"]
[EndTime "10:39:30 PDT"]
[Termination "Rish_97 won by resignation"]

1. d4 {[%clk 0:03:00.9]} 1... Nf6 {[%clk 0:02:58.9]} 2. c4 {[%clk 0:03:00.8]}
2... g6 {[%clk 0:02:58.7]} 3. Nc3 {[%clk 0:03:01.3]} 3... d5 {[%clk 0:02:58.8]}
4. Bd2 {[%clk 0:03:01.6]} 4... Bg7 {[%clk 0:02:57.4]} 5. cxd5 {[%clk 0:03:01.4]}
5... Nxd5 {[%clk 0:02:56.5]} 6. e4 {[%clk 0:03:02.1]} 6... Nxc3 {[%clk
0:02:52.2]} 7. Bxc3 {[%clk 0:03:03]} 7... c5 {[%clk 0:02:45.5]} 8. d5 {[%clk
0:03:03.3]} 8... Bxc3+ {[%clk 0:02:32.4]} 9. bxc3 {[%clk 0:03:04.2]} 9... O-O
{[%clk 0:02:23.6]} 10. h4 {[%clk 0:03:03.6]} 10... e6 {[%clk 0:02:15.3]} 11. d6
{[%clk 0:03:03.6]} 11... Qf6 {[%clk 0:02:14.9]} 12. Qd2 {[%clk 0:02:59.9]} 12...
Bd7 {[%clk 0:02:11.4]} 13. f4 {[%clk 0:02:38.3]} 13... e5 {[%clk 0:01:59.1]} 14.
Nf3 {[%clk 0:02:35.5]} 14... exf4 {[%clk 0:01:32.2]} 15. e5 {[%clk 0:02:35]}
15... Re8 {[%clk 0:01:32.5]} 16. O-O-O {[%clk 0:02:33.3]} 16... Rxe5 {[%clk
0:01:26.6]} 17. Nxe5 {[%clk 0:02:32.9]} 17... Qxe5 {[%clk 0:01:27.5]} 18. Re1
{[%clk 0:02:31.3]} 18... Qf6 {[%clk 0:01:27.3]} 19. Re7 {[%clk 0:02:29.5]} 19...
Be6 {[%clk 0:00:59.6]} 20. Re8+ {[%clk 0:02:29.6]} 20... Kg7 {[%clk 0:00:59.2]}
21. h5 {[%clk 0:02:30.5]} 21... gxh5 {[%clk 0:00:50.2]} 22. Rxh5 {[%clk
0:02:31.4]} 22... Bg4 {[%clk 0:00:34.6]} 23. Rxc5 {[%clk 0:02:27]} 23... Nd7
{[%clk 0:00:34.7]} 24. Rxa8 {[%clk 0:02:27.1]} 24... Nxc5 {[%clk 0:00:35]} 25.
Qd4 {[%clk 0:02:27.8]} 25... Qxd4 {[%clk 0:00:31.6]} 26. cxd4 {[%clk 0:02:28.7]}
26... Ne4 {[%clk 0:00:30.7]} 27. Rd8 {[%clk 0:02:25.3]} 27... Kf6 {[%clk
0:00:30]} 28. Bd3 {[%clk 0:02:25.4]} 28... Nf2 {[%clk 0:00:29.6]} 29. Bxh7
{[%clk 0:02:19.1]} 29... Be6 {[%clk 0:00:24.8]} 30. d5 {[%clk 0:02:08.4]} 30...
Bxd5 {[%clk 0:00:16.6]} 31. Re8 {[%clk 0:01:52]} 31... Bc6 {[%clk 0:00:15.5]}
32. Kd2 {[%clk 0:01:40.5]} 32... Bxe8 {[%clk 0:00:14.4]} 33. Ke2 {[%clk
0:01:17.8]} 33... Ng4 {[%clk 0:00:14.4]} 34. Kf3 {[%clk 0:01:18.3]} 34... Ne5+
{[%clk 0:00:14.7]} 35. Kxf4 {[%clk 0:01:18.9]} 35... Bd7 {[%clk 0:00:15.3]} 36.
Be4 {[%clk 0:01:18.8]} 36... b5 {[%clk 0:00:15.3]} 37. Bd5 {[%clk 0:01:19.1]}
37... a5 {[%clk 0:00:15.5]} 38. a3 {[%clk 0:01:18.8]} 38... b4 {[%clk
0:00:15.6]} 39. axb4 {[%clk 0:01:19.7]} 39... axb4 {[%clk 0:00:16.5]} 40. Ke3
{[%clk 0:01:20.6]} 40... Be6 {[%clk 0:00:16.4]} 41. Be4 {[%clk 0:01:21.1]} 41...
b3 {[%clk 0:00:15.3]} 42. Kd4 {[%clk 0:01:14.2]} 42... b2 {[%clk 0:00:14.8]} 43.
Kc3 {[%clk 0:01:14.1]} 43... Bf5 {[%clk 0:00:14.8]} 44. Bxf5 {[%clk 0:01:12.4]}
44... Kxf5 {[%clk 0:00:15]} 45. Kxb2 {[%clk 0:01:13.3]} 45... Ke6 {[%clk
0:00:15.2]} 46. Kc3 {[%clk 0:01:13.8]} 46... Kxd6 {[%clk 0:00:15.6]} 47. Kd4
{[%clk 0:01:14.7]} 47... Ke6 {[%clk 0:00:16.1]} 48. Ke4 {[%clk 0:01:15.6]} 48...
f6 {[%clk 0:00:16.4]} 49. Kf4 {[%clk 0:01:16.5]} 49... Nf7 {[%clk 0:00:16.8]}
50. g3 {[%clk 0:01:15.9]} 50... Ng5 {[%clk 0:00:17.7]} 51. g4 {[%clk 0:01:15.2]}
51... Kf7 {[%clk 0:00:17.6]} 52. Kf5 {[%clk 0:01:15.7]} 52... Kg7 {[%clk
0:00:18.1]} 53. Kf4 {[%clk 0:01:16.6]} 53... Kg6 {[%clk 0:00:18.6]} 0-1